Cogmind - Beta 15 @@@ ROGUE MODE // 2025.07.09 @ 04:20:09 Player: cloodskull Result: Destroyed by H-61 Shepherd with Heavy Assault Cannon Performance ------------- Evolutions (2) 1000 Regions Visited (3) 600 Robots Destroyed (15) 75 Value Destroyed (395) 395 Prototype IDs (1) 20 Alien Tech Used (0) 0 Bonus (0) 0 TOTAL SCORE: 2090 Bonus ------- None Cogmind --------- Core Integrity 0/550 Matter 286/300 Energy 89/100 System Corruption 0% Temperature Cool (0) Movement Core (50) Location -8/Materials Parts ------- > --- POWER (2) -------- (None) > --- PROPULSION (2) --- (None) > --- UTILITY (5) ------ (None) > --- WEAPON (2) ------- Light Assault Rifle > --- INVENTORY (5) ---- Light Ion Engine Light Ion Engine Light Deuterium Engine Nuclear Core Small Storage Unit Peak State ------------ > --- POWER ------------ Light Ion Engine Light Ion Engine > --- PROPULSION ------- Compact Wheel > --- UTILITY ---------- Medium Storage Unit Improved Sensor Array Recoil Stabilizer > --- WEAPON ----------- Light Assault Rifle Enhanced Autogun > --- INVENTORY -------- Light Ion Engine Light Ion Engine Light Deuterium Engine Nuclear Core Wheel Small Storage Unit EM Pulse Gun [Rating: 16] Favorites ----------- Power Light Ion Engine Engine Light Ion Engine Propulsion Compact Wheel Treads Light Treads Wheel Compact Wheel Utility Medium Storage Unit Device Improved Sensor Array Storage Medium Storage Unit Protection Heavy Armor Plating Weapon Light Assault Rifle Energy Gun EM Pulse Gun Ballistic Gun Light Assault Rifle Build | -11 -10 -10 -8 ------- Run | Yrd Mat Sub Mat Slots Evolved 4 | . . . 4 Power 1 | . . . 1 Propulsion . | . . . . Utility 3 | . . . 3 Weapon . | . . . . Parts Attached 12 | 4 1 . 7 Power 2 | 1 . . 1 Engine 2 | 1 . . 1 Core . | . . . . Reactor . | . . . . Propulsion 2 | 2 . . . Treads 1 | 1 . . . Leg . | . . . . Wheel 1 | 1 . . . Hover . | . . . . Flight . | . . . . Utility 4 | . 1 . 3 Device 2 | . . . 2 Storage 1 | . 1 . . Processor . | . . . . Hackware . | . . . . Protection 1 | . . . 1 Artifact . | . . . . Weapon 4 | 1 . . 3 Energy Gun 1 | . . . 1 Energy Cannon . | . . . . Ballistic Gun 3 | 1 . . 2 Ballistic Cannon . | . . . . Launcher . | . . . . Special Weapon . | . . . . Impact Weapon . | . . . . Slashing Weapon . | . . . . Piercing Weapon . | . . . . Special Melee Weapon . | . . . . Unidentified Prototypes 1 | . . . 1 Parts Lost 11 | . 1 . 10 Power 2 | . . . 2 Propulsion 2 | . 1 . 1 Utility 4 | . . . 4 Weapon 3 | . . . 3 Highest Loss Streak 6 | . 1 . 6 To Critical Strikes . | . . . . Average Backups 5 | 2 4 6 6 Power 2 | . 1 3 3 Propulsion . | . 1 1 1 Utility . | . 1 1 1 Weapon . | . 1 1 . Tool/Special . | . . . . Unused Backups 6 | . . . 6 Power 4 | . . . 4 Propulsion 1 | . . . 1 Utility 1 | . . . 1 Weapon . | . . . . Tool/Special . | . . . . Average Slot Usage (%) 60 | . 66 57 56 Engine 13 | . 14 14 12 Treads 4 | . 11 . . Wheel 10 | . 14 14 8 Device 6 | . . . 11 Storage 10 | . 12 14 9 Ballistic Gun 13 | . 14 14 13 Peak Build Rating 16 | 4 5 4 16 Average Rating 8 | 2 4 4 12 On Entrance 3 | . 4 4 4 Naked Turns 3 | . . . 3 Heaviest Build 25 | 4 14 14 25 Greatest Support 20 | 20 16 16 16 Greatest Overweight (x) 8 | . . . 8 Average Overweight (x) . | . . . 1 Largest Inventory Capacity 10 | 5 10 10 10 Average Capacity 9 | 5 9 10 9 Most Carried 7 | 4 6 6 7 Average Carried 5 | 2 4 6 6 Final Capacity 10 | 5 10 10 5 Final Carried 6 | 4 6 6 5 Class Distribution -------------------- 100% | Mutant Dominant Class ---------------- Mutant | -10/Materials Mutant | -10/Subcaves Mutant | -8/Materials Resources | -11 -10 -10 -8 ----------- Run | Yrd Mat Sub Mat Matter Collected 417 | 151 138 . 128 Remotely . | . . . . Salvage Created 494 | . 209 . 285 Parts 26 | . 12 . 14 Haulers Intercepted . | . . . . Recyclers Shooed 2 | . 1 . 1 Parts Field Recycled . | . . . . Retrieved Matter . | . . . . Parts Self-Destructed . | . . . . Prevented . | . . . . Kills | -11 -10 -10 -8 ------- Run | Yrd Mat Sub Mat Combat Hostiles Destroyed 14 | . 7 . 7 Guns 14 | . 7 . 7 Classes Destroyed 4 | . 2 . 2 Worker 1 | . . . 1 Swarmer 6 | . 3 . 3 Grunt 7 | . 4 . 3 Duelist 1 | . . . 1 Best Kill Streak 4 | . 4 . 4 Combat Bots Only 4 | . 4 . 4 Max Kills in Single Turn 2 | . 1 . 2 Gunslinging . | . . . . Exploded . | . . . . Melee . | . . . . Uniques/NPCs Destroyed . | . . . . Combat | -11 -10 -10 -8 -------- Run | Yrd Mat Sub Mat Hostile Shots Fired 143 | . 56 . 87 Missed 48 | . 14 . 34 Hits 95 | . 42 . 53 Melee 4 | . . . 4 Projectile 91 | . 42 . 49 AOE 1 | . . . 1 Critical Strikes 5 | . . . 5 Damage Taken 1835 | . 402 . 1433 Core 685 | . 101 . 584 Absorbed by Shields . | . . . . Core Remaining (%) 79 | 100 . 59 . Volleys Fired 75 | . 44 . 31 Largest 2 | . 1 . 2 Hottest 65 | . 20 . 65 Shots Fired 85 | . 44 . 41 Gun 85 | . 44 . 41 Cannon . | . . . . Launcher . | . . . . Special . | . . . . Kinetic 79 | . 44 . 35 Thermal . | . . . . Explosive . | . . . . Electromagnetic 6 | . . . 6 Robot Hit Streak 12 | . 5 . 12 Robot Miss Streak 5 | . 2 . 5 Penetration Max . | . . . . Secondary Targets 2 | . . . 2 Max Gunslinging Chain 1 | . . . 1 Shots Hit Robots 54 | . 28 . 26 Core Hits 32 | . 15 . 17 Critical Kills . | . . . . Critical Parts Destroyed 1 | . 1 . . Critical Strikes 1 | . 1 . . Destroy 1 | . 1 . . Melee Attacks . | . . . . Impact . | . . . . Slashing . | . . . . Piercing . | . . . . Sneak Attacks . | . . . . Combat Hostiles . | . . . . Follow-up Attacks . | . . . . Damage Inflicted 850 | . 232 . 618 Guns 664 | . 232 . 432 Cannons . | . . . . Explosions 181 | . . . 181 Melee . | . . . . Ramming 5 | . . . 5 Kinetic 610 | . 232 . 378 Thermal . | . . . . Explosive 181 | . . . 181 Electromagnetic 54 | . . . 54 Impact . | . . . . Slashing . | . . . . Piercing . | . . . . Highest Corruption . | . . . . Average Corruption . | . . . . Corruption Purged . | . . . . Corruption Blocked . | . . . . Overload Shots . | . . . . Overflow Damage 36 | . . . 36 Projectiles . | . . . . Explosions 36 | . . . 36 Melee . | . . . . Knockbacks . | . . . . Impact . | . . . . Kinetic . | . . . . Secondary . | . . . . Self-Inflicted Damage 2 | . . . 2 Shots . | . . . . Rammed 4 | . . . 4 Targets Rammed 4 | . . . 4 Kicked . | . . . . Crushed . | . . . . Highest Temperature 16 | . 6 . 16 Average Temperature 4 | . 6 . 3 Received Heat Transfer 399 | . 120 . 279 Siege Activations . | . . . . Martial Activations . | . . . . Shielding Activations . | . . . . Robots Disrupted . | . . . . Combat Hostiles . | . . . . Robots Corrupted . | . . . . Combat Hostiles . | . . . . Parts Fried . | . . . . Impact Corruptions . | . . . . Robots Melted . | . . . . Combat Hostiles . | . . . . Parts Melted . | . . . . Heat Transferred . | . . . . Parts Sabotaged . | . . . . Parts Stolen . | . . . . Parts Stripped . | . . . . Power Chain Reactions . | . . . . Alert | -11 -10 -10 -8 ------- Run | Yrd Mat Sub Mat Maximum Alert Level . | . . . . Low Security (%) 100 | 100 100 . 100 Level 1 . | . . . . Level 2 . | . . . . Level 3 . | . . . . Level 4 . | . . . . Level 5 . | . . . . High Security . | . . . . Max Security . | . . . . Peak Influence 95 | . 90 . 95 Initial 13 | . . . 13 Average 20 | . 32 . 15 Influence Increases 380 | . 190 . 190 Destroy 0b10 Robot/C 280 | . 140 . 140 Destroy 0b10 Robot/NC 5 | . . . 5 Destroy Leader 40 | . 20 . 20 Disable Machine 15 | . . . 15 Destroy Structure 10 | . . . 10 Lose Combat Pursuer 30 | . 30 . . Influence Decreases 352 | . 120 44 188 Entered New Map 47 | . . 34 13 Time Decay 205 | . 110 10 85 Lost Part 100 | . 10 . 90 Squads Dispatched 2 | . 1 . 1 Investigation . | . . . . Extermination . | . . . . Reinforcement 2 | . 1 . 1 Assault . | . . . . Garrison . | . . . . Intercept . | . . . . Searches Triggered . | . . . . Construction Impeded . | . . . . Haulers Reinforced . | . . . . Active Scanning Responses . | . . . . Cargo Convoy Interrupts . | . . . . Stealth | -11 -10 -10 -8 --------- Run | Yrd Mat Sub Mat Distress Signals 2 | . . . 2 Communications Jammed . | . . . . Distress Signals . | . . . . Times Spotted 23 | . 8 . 15 Peak Tracking Total 6 | . 3 . 6 Tactical Retreats 1 | . 1 . . Traps | -11 -10 -10 -8 ------- Run | Yrd Mat Sub Mat Traps Triggered . | . . . . Indirectly . | . . . . Trap Hack Attempts . | . . . . Triggered . | . . . . Disarmed . | . . . . Reprogrammed . | . . . . Reused . | . . . . Traps Extracted . | . . . . Installed . | . . . . Triggered . | . . . . Machines | -11 -10 -10 -8 ---------- Run | Yrd Mat Sub Mat Machines Disabled 1 | . . . 1 Max in Single Turn 1 | . . . 1 Machines Repaired . | . . . . Machines Dismantled . | . . . . Machines Sabotaged . | . . . . Overloaded Fab Kills . | . . . . Hacking | -11 -10 -10 -8 --------- Run | Yrd Mat Sub Mat Machines Accessed 2 | . . . 2 Terminals 2 | . . . 2 Fabricators . | . . . . Repair Stations . | . . . . Recycling Units . | . . . . Scanalyzers . | . . . . Garrison Access . | . . . . Total Hacks 4 | . . . 4 Successful 1 | . . . 1 Failed 3 | . . . 3 Catastrophic . | . . . . Database Lockouts . | . . . . Manual 4 | . . . 4 Terminals 4 | . . . 4 Fabricators . | . . . . Repair Stations . | . . . . Recycling Units . | . . . . Scanalyzers . | . . . . Garrison Access . | . . . . Terminal Hacks . | . . . . Fabricator Hacks . | . . . . Repair Station Hacks . | . . . . Recycling Unit Hacks . | . . . . Scanalyzer . | . . . . Garrison Access Hacks . | . . . . Unauthorized Hacks 1 | . . . 1 Terminals 1 | . . . 1 Botnet 1 | . . . 1 Fabricators . | . . . . Repair Stations . | . . . . Recycling Units . | . . . . Scanalyzers . | . . . . Garrison Access . | . . . . Data Cores Recovered . | . . . . Used . | . . . . Hacking Detections 1 | . . . 1 Full Trace Events . | . . . . Feedback Events . | . . . . Feedback Blocked . | . . . . Robot Schematics Acquired . | . . . . Robots Built . | . . . . Authchips . | . . . . Time . | . . . . Total Robot Build Rating . | . . . . Part Schematics Acquired . | . . . . Parts Built . | . . . . Authchips . | . . . . Time . | . . . . Total Part Build Rating . | . . . . Parts Repaired . | . . . . Time . | . . . . Parts Recycled . | . . . . Recycled Matter . | . . . . Retrieved Matter . | . . . . Retrieved Components . | . . . . Parts Scanalyzed . | . . . . Part Schematics Acquired . | . . . . Parts Damaged . | . . . . Bothacking | -11 -10 -10 -8 ------------ Run | Yrd Mat Sub Mat Used RIF Installer . | . . . . Robots Hacked . | . . . . Non-combat . | . . . . Combat . | . . . . Robot Hacks Applied . | . . . . Relay Couplers Released . | . . . . Fabnet Peak Effective % . | . . . . Robots Rewired . | . . . . Allies Hacked . | . . . . Hacks Repelled . | . . . . Allies | -11 -10 -10 -8 -------- Run | Yrd Mat Sub Mat Total Allies . | . . . . Largest Group . | . . . . Highest-Rated Group . | . . . . Highest-Rated Ally . | . . . . Total Orders . | . . . . Ally Attacks . | . . . . Total Damage . | . . . . Kills . | . . . . Allies Corrupted . | . . . . Allies Melted . | . . . . Intel | -11 -10 -10 -8 ------- Run | Yrd Mat Sub Mat Active Infowar (turns) 326 | . . . 326 Sensors 326 | . . . 326 Robot Analysis Total . | . . . . Derelict Logs Recovered . | . . . . Drone Launches . | . . . . Drone Recoveries . | . . . . Exploration | -11 -10 -10 -8 ------------- Run | Yrd Mat Sub Mat Turns Passed 818 | 47 280 28 463 Spaces Moved 459 | 35 152 19 253 Core 22 | 6 . . 16 Treads 9 | 9 . . . Legs . | . . . . Wheels 428 | 20 152 19 237 Hover . | . . . . Flight . | . . . . Fastest Speed 50 | 50 100 100 50 Average Speed 113 | 106 100 100 124 Slowest Speed 450 | 160 100 100 450 Overloaded Moves . | . . . . Propulsion Burnouts . | . . . . Robots Hopped . | . . . . Potential Cave-ins . | . . . . Cave-ins Triggered . | . . . . Exploration Rate (%) 14 | 3 22 3 30 Regions Visited 3 Branch Regions 1 Pre-discovered Areas . | . . . . Known Exits Taken . | . . . . Unknown Exits Taken 3 | 1 1 1 . Scrap Searched . | . . . . Spaces Dug . | . . . . Terrain Destroyed 10 | . . . 10 Melee . | . . . . Projectile . | . . . . AOE 10 | . . . 10 Terrain Rammed . | . . . . Walls Destroyed . | . . . . Machines Disabled . | . . . . Actions | -11 -10 -10 -8 --------- Run | Yrd Mat Sub Mat Total 681 | 42 244 28 367 Wait 125 | . 46 10 69 Move 456 | 34 151 18 253 Hop . | . . . . Pick Up 8 | 4 2 . 2 Fast Attach 10 | 4 1 . 5 Attach 2 | . . . 2 Detach . | . . . . Swap 1 | . . . 1 Drop . | . . . . Fire 75 | . 44 . 31 Melee . | . . . . Ram 4 | . . . 4 Kick . | . . . . Crush . | . . . . Escape Stasis . | . . . . Rewire . | . . . . Trap . | . . . . Miscellaneous . | . . . . Route ------- -11/Scrapyard -10/Materials -10/Subcaves -8/Materials (discovered 1 exit: [*Fac]) History --------- Turn | Location | Event 35 | -11/Scrapyard | Discovered new exit (range 14) 48 | -11/Scrapyard | Entered Materials 316 | -10/Materials | Build established: Mutant 323 | -10/Materials | Discovered new exit (range 6) 328 | -10/Materials | Entered Subcaves 329 | -10/Subcaves | Approached by a straggling Scientist 340 | -10/Subcaves | Discovered new exit (range 7) 356 | -10/Subcaves | Entered Materials 356 | -8/Materials | Evolved 4 slots: Power x1, Utility x3 702 | -8/Materials | Lost 4 parts (2p1u1w) 770 | -8/Materials | Discovered new exit (range 16) 798 | -8/Materials | Core integrity fell below 50% 815 | -8/Materials | Core integrity fell below 20% 819 | -8/Materials | Destroyed by H-61 Shepherd with Heavy Assault Cannon Last Messages --------------- 00810_ U-05 Engineer lays Concrete. 00811_ The unstable cave ceiling collapses. 00811_ U-05 Engineer lays Concrete. 00813_ K-01 Serf collects debris. 00813_ Slammed into A-02 Transporter. 00814_ U-05 Engineer lays Concrete. 00814_ Penetrated by Slug. 00814_ Nuclear Reactor explodes. 00814_ Med. Storage Unit destroyed. 00814_ R-06 Scavenger destroyed. 00814_ Electrolysis Chamber disabled. 00814_ A-02 Transporter destroyed. 00815_ The unstable cave ceiling collapses. 00815_ U-05 Engineer lays Concrete. 00816_ K-01 Serf collects debris. 00816_ U-05 Engineer lays Concrete. 00817_ Acquired Lgt. Assault Rifle. 00817_ U-05 Engineer lays Concrete. 00818_ K-01 Serf collects debris. 00818_ U-05 Engineer lays Concrete. Map ----- +----------------------------------------------------+ | ????????????????????????????????????????????????? | | ????????????????????????????????????????????????? | | ????????????????????????????????????????????????? | | ????????????????????????????????????????????????? | | ????????????????????????????????????????????????? | | ????????????????????????????????????????????????? | | ????????????????????????????????????????????????? | | ????????????????????????????????????????????????? | | ????????????????????????????????????????????????? | | ????????????????????????????????????????????????? | | ????????????????????????????????????????????????? | | ????????????????????????????????????????????????? | | ????????????????????????????????????????????????? | | ????????????????????????????????????????????????? | | ????????????????????????????????????????????????? | | ????????????????????????????????????????????????? | | ????????????????????????????????????????????????? | | ????????????????######??????????????????????????? | | ???????????????? ?##+########??????????????? | | ????????????????""" # ! #??????????????? | | ????????????????"R" #! #??????????????? | | ??????????????# " " ! #??????????????? | | ??????????????? # #??????????????? | | ???????????????? """"" = " #??????????????? | | ????????#??????? """"" %* % " #??????????????? | | ????????# ????# """"" %@ " #??????????????? | | ????????# ???# ! = #??????????????? | | ????????# #######+## ! ##??????????????? | | ?????####^^ ^^^ =%! #??????????????? | | ???? ! #??????????????? | | ????????# % ku #??????????????? | | ????????######## % %% k + "???????????? | | ???????????????# % u # ""??????????? | | ##########?????# g = #? ??????????? | | # ####### %! Hg #???##?????????? | | "" # % = ????????????? | | " %+ % %